Cogmind - Beta 16 @@@ ROGUE MODE // 2025.12.25 @ 21:27:49 Player: legato Result: Destroyed by W2-JTW(R) with Subdweller Machine Gun Performance ------------- Evolutions (0) 0 Regions Visited (3) 600 Robots Destroyed (9) 45 Value Destroyed (192) 192 Prototype IDs (0) 0 Alien Tech Used (0) 0 Bonus (0) 0 TOTAL SCORE: 837 Bonus ------- None Cogmind --------- Core Integrity 0/250 Matter 280/300 Energy 100/100 System Corruption 5% Temperature Cool (0) Movement Walking (120) Location -10/Subcaves Parts ------- > --- POWER (1) -------- (None) > --- PROPULSION (2) --- Aluminum Leg > --- UTILITY (2) ------ (None) > --- WEAPON (2) ------- Light Assault Rifle > --- INVENTORY (5) ---- Light Ion Engine Seismic Detector EM Pulse Gun Peak State ------------ > --- POWER ------------ Light Ion Engine > --- PROPULSION ------- Aluminum Leg Aluminum Leg > --- UTILITY ---------- Scrap Shield > --- WEAPON ----------- Assault Rifle Light Assault Rifle > --- INVENTORY -------- Light Ion Engine Seismic Detector EM Pulse Gun [Rating: 9] Favorites ----------- Power Light Ion Engine Engine Light Ion Engine Propulsion Aluminum Leg Leg Aluminum Leg Wheel Wheel Utility Seismic Detector Device Seismic Detector Processor Targeting Computer Protection Scrap Shield Weapon Light Assault Rifle Energy Gun EM Pulse Gun Ballistic Gun Light Assault Rifle Special Weapon Mining Laser Build | -11 -10 -10 -10 ------- Run | Yrd Mat Min Sub Slots Evolved . | . . . . Power . | . . . . Propulsion . | . . . . Utility . | . . . . Weapon . | . . . . Parts Attached 19 | 9 1 7 2 Power 3 | 1 . 2 . Engine 3 | 1 . 2 . Core . | . . . . Reactor . | . . . . Propulsion 5 | 4 . 1 . Treads . | . . . . Leg 3 | 2 . 1 . Wheel 2 | 2 . . . Hover . | . . . . Flight . | . . . . Utility 5 | 1 . 3 1 Device 3 | 1 . 2 . Storage . | . . . . Processor 1 | . . 1 . Hackware . | . . . . Protection 1 | . . . 1 Artifact . | . . . . Weapon 6 | 3 1 1 1 Energy Gun 2 | 1 . 1 . Energy Cannon . | . . . . Ballistic Gun 3 | 1 1 . 1 Ballistic Cannon . | . . . . Launcher . | . . . . Special Weapon 1 | 1 . . . Impact Weapon . | . . . . Slashing Weapon . | . . . . Piercing Weapon . | . . . . Special Melee Weapon . | . . . . Unidentified Prototypes . | . . . . Parts Lost 6 | . 1 . 5 Power 1 | . . . 1 Propulsion 1 | . . . 1 Utility 2 | . 1 . 1 Weapon 2 | . . . 2 Highest Loss Streak 4 | . 1 . 4 To Critical Strikes . | . . . . Average Backups 4 | 2 4 4 3 Power . | . 1 1 1 Propulsion 1 | 1 3 2 . Utility . | . . . . Weapon . | . . . 1 Tool/Special . | . . . . Unused Backups 5 | . . 3 2 Power 1 | . . . 1 Propulsion 4 | . . 3 1 Utility . | . . . . Weapon . | . . . . Tool/Special . | . . . . Average Slot Usage (%) 76 | . 80 91 52 Engine 10 | . 14 14 3 Leg 24 | . 28 28 17 Device 12 | . 9 19 3 Protection 3 | . . . 10 Energy Gun 6 | . . 12 1 Ballistic Gun 15 | . 17 15 15 Special Weapon 2 | . 10 . . Peak Build Rating 9 | 6 6 7 9 Average Rating 5 | 4 5 6 5 On Entrance 4 | . 6 5 7 Avg Prop Armor Cover (%) . | . . . . Naked Turns . | . . . . Heaviest Build 24 | 7 6 9 24 Greatest Support 20 | 20 20 20 20 Greatest Overweight (x) 1 | . . . 1 Average Overweight (x) . | . . . . Largest Inventory Capacity 5 | 5 5 5 5 Average Capacity 5 | 5 5 5 5 Most Carried 5 | 5 5 5 5 Average Carried 4 | 2 4 4 3 Final Capacity 5 | 5 5 5 5 Final Carried 5 | 5 4 4 3 Class Distribution -------------------- 100% | Mutant Dominant Class ---------------- Mutant | -10/Materials Mutant | -10/Mines Mutant | -10/Subcaves Resources | -11 -10 -10 -10 ----------- Run | Yrd Mat Min Sub Matter Collected 494 | 298 . 170 26 Remotely . | . . . . Salvage Created 335 | 71 . 264 . Parts 22 | 3 . 18 1 Haulers Intercepted . | . . . . Recyclers Shooed . | . . . . Parts Field Recycled . | . . . . Retrieved Matter . | . . . . Parts Self-Destructed . | . . . . Prevented 1 | . . . 1 Parts Restored . | . . . . Kills | -11 -10 -10 -10 ------- Run | Yrd Mat Min Sub Combat Hostiles Destroyed 7 | 1 . 5 1 Guns 6 | 1 . 5 . Classes Destroyed 4 | 2 . 2 . Tunneler 1 | 1 . . . Recycler 1 | . . 1 . Swarmer 3 | . . 3 . Grunt 4 | 1 . 2 1 Best Kill Streak 3 | 2 . 3 1 Combat Bots Only 3 | 1 . 3 1 Max Kills in Single Turn 2 | 2 . 1 1 Gunslinging . | . . . . Exploded . | . . . . Melee . | . . . . Uniques/NPCs Destroyed . | . . . . Combat | -11 -10 -10 -10 -------- Run | Yrd Mat Min Sub Hostile Shots Fired 70 | 10 4 24 32 Missed 22 | 3 2 6 11 Hits 48 | 7 2 18 21 Projectile 48 | 7 2 18 21 Critical Strikes 2 | . . 2 . Damage Taken 1093 | 75 336 236 446 Core 254 | 21 100 58 75 Absorbed by Shields . | . . . . Core Remaining (%) 91 | 91 . . . Volleys Fired 66 | 8 14 18 26 Largest 2 | 2 2 2 1 Hottest 120 | 70 120 60 20 Shots Fired 93 | 16 15 36 26 Gun 79 | 16 1 36 26 Cannon . | . . . . Launcher . | . . . . Special 14 | . 14 . . Kinetic 53 | 8 1 18 26 Thermal 22 | 8 14 . . Explosive . | . . . . Electromagnetic 18 | . . 18 . Robot Hit Streak 10 | 3 . 8 10 Robot Miss Streak 2 | 2 . 2 2 Penetration Max . | . . . . Secondary Targets . | . . . . Shots Hit Robots 45 | 10 . 24 11 Core Hits 17 | 3 . 10 4 Critical Kills . | . . . . Critical Parts Destroyed . | . . . . Critical Strikes 1 | 1 . . . Burn 1 | 1 . . . Melee Attacks . | . . . . Impact . | . . . . Slashing . | . . . . Piercing . | . . . . Sneak Attacks . | . . . . Combat Hostiles . | . . . . Follow-up Attacks . | . . . . Damage Inflicted 512 | 107 . 315 90 Guns 506 | 107 . 309 90 Cannons . | . . . . Explosions . | . . . . Melee . | . . . . Ramming 6 | . . 6 . Kinetic 302 | 45 . 167 90 Thermal 62 | 62 . . . Explosive . | . . . . Electromagnetic 142 | . . 142 . Impact . | . . . . Slashing . | . . . . Piercing . | . . . . Highest Corruption 5 | . 5 5 5 Average Corruption 5 | . 5 5 5 Corruption Purged . | . . . . Corruption Blocked . | . . . . Effects 16 | . 2 10 4 Message Errors 4 | . . 3 1 Matter Fused 4 | . 1 2 1 Heat Flow Errors 2 | . . 1 1 Energy Discharges 3 | . . 3 . Parts Fused 1 | . 1 . . Data Loss (minor) 1 | . . . 1 Data Loss (major) 1 | . . 1 . Overload Shots . | . . . . Overflow Damage . | . . . . Projectiles . | . . . . Explosions . | . . . . Melee . | . . . . Knockbacks . | . . . . Impact . | . . . . Kinetic . | . . . . Secondary . | . . . . Self-Inflicted Damage . | . . . . Shots . | . . . . Rammed . | . . . . Targets Rammed 2 | . . 2 . Kicked 2 | . . 2 . Crushed . | . . . . Highest Temperature 134 | 134 48 87 133 Average Temperature 34 | 63 21 35 63 Received Heat Transfer 270 | 42 18 138 72 Siege Activations . | . . . . Martial Activations . | . . . . Shielding Activations . | . . . . Robots Disrupted . | . . . . Combat Hostiles . | . . . . Robots Corrupted . | . . . . Combat Hostiles . | . . . . Parts Fried . | . . . . Impact Corruptions . | . . . . Robots Melted . | . . . . Combat Hostiles . | . . . . Parts Melted 2 | 2 . . . Heat Transferred 259 | 259 . . . Parts Sabotaged . | . . . . Parts Stolen . | . . . . Parts Stripped . | . . . . Power Chain Reactions . | . . . . Alert | -11 -10 -10 -10 ------- Run | Yrd Mat Min Sub Maximum Alert Level . | . . . . Low Security (%) 100 | 100 100 100 . Level 1 . | . . . . Level 2 . | . . . . Level 3 . | . . . . Level 4 . | . . . . Level 5 . | . . . . High Security . | . . . . Max Security . | . . . . Peak Influence 60 | 25 13 60 . Initial 9 | . 9 . . Average 10 | 4 1 17 . Influence Increases 191 | 25 6 140 20 Destroy 0b10 Robot/C 140 | 20 . 100 20 Destroy 0b10 Robot/NC 10 | 5 . 5 . Destroy Leader 20 | . . 20 . Successful Hack 4 | . 4 . . Destroy Structure 2 | . 2 . . Lose Combat Pursuer 15 | . . 15 . Influence Decreases 191 | 10 21 140 20 Entered New Map 6 | . 6 . . Time Decay 185 | 10 15 140 20 Squads Dispatched . | . . . . Investigation . | . . . . Extermination . | . . . . Reinforcement . | . . . . Assault . | . . . . Garrison . | . . . . Intercept . | . . . . Searches Triggered . | . . . . Construction Impeded . | . . . . Haulers Reinforced . | . . . . Active Scanning Responses . | . . . . Cargo Convoy Interrupts . | . . . . Stealth | -11 -10 -10 -10 --------- Run | Yrd Mat Min Sub Distress Signals . | . . . . Communications Jammed . | . . . . Distress Signals . | . . . . Times Spotted 23 | 1 2 6 14 Peak Tracking Total 9 | 1 4 3 9 Tactical Retreats 1 | . . 1 . Traps | -11 -10 -10 -10 ------- Run | Yrd Mat Min Sub Traps Triggered . | . . . . Indirectly . | . . . . Trap Hack Attempts . | . . . . Triggered . | . . . . Disarmed . | . . . . Reprogrammed . | . . . . Reused . | . . . . Traps Extracted . | . . . . Installed . | . . . . Triggered . | . . . . Machines | -11 -10 -10 -10 ---------- Run | Yrd Mat Min Sub Machines Disabled . | . . . . Max in Single Turn . | . . . . Machines Repaired . | . . . . Machines Dismantled . | . . . . Machines Sabotaged . | . . . . Overloaded Fab Kills . | . . . . Hacking | -11 -10 -10 -10 --------- Run | Yrd Mat Min Sub Machines Accessed 1 | . 1 . . Terminals 1 | . 1 . . Fabricators . | . . . . Repair Stations . | . . . . Recycling Units . | . . . . Scanalyzers . | . . . . Garrison Access . | . . . . Total Hacks 1 | . 1 . . Successful 1 | . 1 . . Failed . | . . . . Catastrophic . | . . . . Database Lockouts . | . . . . Manual . | . . . . Terminals 1 | . 1 . . Fabricators . | . . . . Repair Stations . | . . . . Recycling Units . | . . . . Scanalyzers . | . . . . Garrison Access . | . . . . Terminal Hacks 1 | . 1 . . Emergency Access Points 1 | . 1 . . Fabricator Hacks . | . . . . Repair Station Hacks . | . . . . Recycling Unit Hacks . | . . . . Scanalyzer . | . . . . Garrison Access Hacks . | . . . . Unauthorized Hacks . | . . . . Terminals . | . . . . Fabricators . | . . . . Repair Stations . | . . . . Recycling Units . | . . . . Scanalyzers . | . . . . Garrison Access . | . . . . Data Cores Recovered . | . . . . Used . | . . . . Hacking Detections . | . . . . Full Trace Events . | . . . . Feedback Events . | . . . . Feedback Blocked . | . . . . Robot Schematics Acquired . | . . . . Robots Built . | . . . . Authchips . | . . . . Time . | . . . . Total Robot Build Rating . | . . . . Part Schematics Acquired . | . . . . Parts Built . | . . . . Authchips . | . . . . Time . | . . . . Total Part Build Rating . | . . . . Part Studies Acquired . | . . . . Parts Repaired . | . . . . Time . | . . . . Parts Recycled . | . . . . Recycled Matter . | . . . . Retrieved Matter . | . . . . Retrieved Components . | . . . . Parts Scanalyzed . | . . . . Part Schematics Acquired . | . . . . Parts Damaged . | . . . . Bothacking | -11 -10 -10 -10 ------------ Run | Yrd Mat Min Sub Used RIF Installer . | . . . . Robots Hacked . | . . . . Non-combat . | . . . . Combat . | . . . . Robot Hacks Applied . | . . . . Relay Couplers Released . | . . . . Fabnet Peak Effective % . | . . . . Robots Rewired . | . . . . Allies Hacked . | . . . . Hacks Repelled . | . . . . Allies | -11 -10 -10 -10 -------- Run | Yrd Mat Min Sub Total Allies . | . . . . Largest Group . | . . . . Highest-Rated Group . | . . . . Highest-Rated Ally . | . . . . Total Orders . | . . . . Ally Attacks . | . . . . Total Damage . | . . . . Kills . | . . . . Allies Corrupted . | . . . . Allies Melted . | . . . . Intel | -11 -10 -10 -10 ------- Run | Yrd Mat Min Sub Active Infowar (turns) 507 | 13 106 343 45 Sensors 197 | . . 183 14 Seismic 507 | 13 106 343 45 Robot Analysis Total . | . . . . Derelict Logs Recovered 1 | . . 1 . Drone Launches . | . . . . Drone Recoveries . | . . . . Exploration | -11 -10 -10 -10 ------------- Run | Yrd Mat Min Sub Turns Passed 914 | 134 166 372 242 Spaces Moved 526 | 89 90 242 105 Core 24 | 24 . . . Treads . | . . . . Legs 497 | 60 90 242 105 Wheels 5 | 5 . . . Hover . | . . . . Flight . | . . . . Fastest Speed 50 | 50 120 120 120 Average Speed 126 | 98 120 120 172 Slowest Speed 190 | 120 120 120 190 Overloaded Moves . | . . . . Propulsion Burnouts . | . . . . Robots Hopped . | . . . . Potential Cave-ins 26 | . 26 . . Cave-ins Triggered 1 | . 1 . . Exploration Rate (%) 19 | 9 22 42 5 Regions Visited 3 Branch Regions 2 Pre-discovered Areas 1 | . . 1 . Known Exits Taken . | . . . . Unknown Exits Taken 3 | 1 1 1 . Scrap Searched 2 | . . 2 . Spaces Dug 14 | . 14 . . Terrain Destroyed 14 | . 14 . . Melee . | . . . . Projectile 14 | . 14 . . AOE . | . . . . Terrain Rammed . | . . . . Walls Destroyed . | . . . . Machines Disabled . | . . . . Actions | -11 -10 -10 -10 --------- Run | Yrd Mat Min Sub Total 661 | 119 105 289 148 Wait 13 | . . 4 9 Move 522 | 88 88 241 105 Hop . | . . . . Pick Up 12 | 6 . 5 1 Fast Attach 12 | 9 . 3 . Attach 6 | 2 1 . 3 Detach 4 | 2 . . 2 Swap 4 | . . 4 . Drop 15 | 4 1 8 2 Fire 66 | 8 14 18 26 Melee . | . . . . Ram . | . . . . Kick 2 | . . 2 . Crush . | . . . . Escape Stasis 1 | . 1 . . Rewire 4 | . . 4 . Trap . | . . . . Miscellaneous . | . . . . Route ------- -11/Scrapyard -10/Materials -10/Mines (discovered 2 exits: [*Mat] / [*Sub]) -10/Subcaves History --------- Turn | Location | Event 2 | -11/Scrapyard | Met Revision 17 83 | -11/Scrapyard | Discovered new exit (range 8) 135 | -11/Scrapyard | Entered Materials 173 | -10/Materials | Discovered new exit (range 14) 241 | -10/Materials | Crushed by falling debris 301 | -10/Materials | Entered Mines 308 | -10/Mines | Build established: Mutant 334 | -10/Mines | Met a Derelict bent on vengeance 358 | -10/Mines | Core integrity fell below 50% 475 | -10/Mines | Discovered new exit (range 4) 615 | -10/Mines | Learned location of Storage (-9) 662 | -10/Mines | Discovered new exit (range 9) 673 | -10/Mines | Entered Subcaves 674 | -10/Subcaves | Approached by a straggling Scientist 704 | -10/Subcaves | Ambushed by Subdwellers from Twisted Machinery 757 | -10/Subcaves | Lost 4 parts (1p1n2w) 775 | -10/Subcaves | A swath of the cavern ceiling suddenly collapsed 886 | -10/Subcaves | Ambushed by swarm of Subdwellers 890 | -10/Subcaves | Ambushed by Subdwellers from Twisted Machinery 890 | -10/Subcaves | Ambushed by Subdwellers from Twisted Machinery 890 | -10/Subcaves | Ambushed by Subdwellers from Twisted Machinery 910 | -10/Subcaves | Core integrity fell below 20% 915 | -10/Subcaves | Destroyed by W2-JTW(R) with Subdweller Machine Gun Last Messages --------------- collapses. Subatomizers dissect the Sub. Laser. Acquired 3 matter. Subatomizers dissect the Sub. Laser. A mess of Twisted Machinery falls from the cavern ceiling. A2-JIF(R) emerges from the Twisted Machinery. ET-W0Y(R) emerges from the Twisted Machinery. U9-P50(R) angrily emerges from the Twisted Machinery. UB-131(R) angrily emerges from the Twisted Machinery. YM-IA4(R) angrily emerges from the Twisted Machinery. UC-UK0(R) emerges from the Twisted Machinery. Subatomizers dissect the Sub. Laser. System corrupted: Matter fused (-10). Scrap Shield destroyed. Subatomizers dissect the Sub. Laser. [Achievement: Deductive Reasoning] Map ----- +----------------------------------------------------+ | ?????????????????????????????????????????????????? | | ?????????????????????????????????????????????????? | | ?????????????????????????????????????????????????? | | ?????????????????????????????????????????????????? | | ?????????????????????????????????????????????????? | | ?????????????????????????????????????????????????? | | ?????????????????????????????????????????????????? | | ?????????????????????????????????????????????????? | | ?????????????????????????????????????????????????? | | ?????????????????????????????????#???????????????? | | ???????????????????????????????? #???????????????? | | ???????????????????????????????? ????????????????? | | ??????????????????????????????? ????????????????? | | ??????????????????????????????? ?????????????????? | | ?????????????????????????????? ##????????????????? | | ?????????????????????????????? #????????????????? | | ????????????????????????????? ##???????????????? | | ???????????????????????###### ####??????????????? | | ??????????????# ?????### #"#####""#??????????????? | | ???????????????# ??# [#"#"#"#"########????????? | | ????????????????? "" ## ###""""[##""#"" ####?????? | | ????????????????? """ ##### #&##"#"#"# #?????? | | ??????????????????????# !%!##""#&*##### #????## | | ??????????????????????#####=####### # #?#### | | ????????????????????????##R;#???????## ### | | ????????????????????????#@R#"####???### | | ??????????????????????### R;##&!##### ## = & | | ??????????????????# ##"""R &%%&! ## | | ????????????????? " "RR [=&= | | ??????????????????"" R"###"#### ## | | ??????????????????"#""""" "##?###??## #### | | ???????????????????### ##; #????????#########??### | | ?????????????????????##?####?????????????????????? | | ?????????????????????????????????????????????????? | | ?????????????????????????????????????????????????? | | ?????????????????????????????????????????????????? | | ?????????????????????????????????????????????????? | | ?????????????????????????????????????????????????? | | ?????????????????????????????????????????????????? | | ?????????????????????????????????????????????????? | | ?????????????????????????????????????????????????? | | ?????????????????????????????????????????????????? | | ?????????????????????????????????????????????????? | | ?????????????????????????????????????????????????? | | ?????????????????????????????????????????????????? | | ?????????????????????????????????????????????????? | | ?????????????????????????????????????????????????? | | | | | | | +----------------------------------------------------+ Best States ------------- Heat Dissipation 25 Energy Generation 10 Energy Capacity 125 Matter Stores 300 Matter Capacity 300 Sight Range 16 Robot Scan Range 14 Terrain Scan Density 10 Armor Coverage 800 Evasion (%) 55 Targeting Accuracy 5 Item Schematics ----------------- None Robot Schematics ------------------ None Fabricated ------------ Nothing Repaired ---------- Nothing Studied --------- None Alien Tech Used ----------------- None Achievements -------------- Crack Shot Deductive Reasoning Unlikely Earthworm Challenges ------------ None Game ------ Seed ServoAssembledCorpse Manual? 0 Play Time 00:17:04 Cumulative 1.6 hours Start 2025.12.25 @ 21:00:25 End 2025.12.25 @ 21:27:49 Sessions 2 Manual Loads 0 Difficulty Rogue Special Mode None Game No. 3 Rogue 3 Adventurer 0 Explorer 0 Win Type - Total 0 Types 0/0/0/0/0/0/0/0/0/0 Lore% 2 Gallery% 3 Achievement% 4 Wizard Run 0 Options --------- Layout 1 ASCII 0 Keyboard 1 Movement Vi Keybinds 1 Fullscreen 1 Font 24/Smallcaps Map View 50x35 Zoom Use 0% Tactical HUD 0 Map Filters NONE Filters NONE Steam 1 RUN: 5401ed4d-3fe4-41d9-8eab-a197bb6e3b3d